Department Family,Entity,Date,Expense Type,Expense Area,Supplier,Supplier Type,Transaction Number,Amount,Description,Expenditure Type
Land Registry,Land Registry,01/05/2013,Birkenhead Office,Rates Payable,Wirral Metrpolitan Borough Council,Large,212681,24021,Rates Payable,Administration
Land Registry,Land Registry,02/05/2013,Central Facilities Management Team,Transport Hire of Cars and Vans,Enterprise Rent-A-Car (UK) Ltd,Large,944662,27893.33,Transport Hire of Cars and Vans,Administration
Land Registry,Land Registry,02/05/2013,Central Facilities Management Team,"Computer Equipment Purchases <1,000",Steria Limited,Large,944675,37.82,"Computer Equipment Purchases <1,000",Administration
Land Registry,Land Registry,02/05/2013,IS Service Delivery,DITI Printer Managed Service,Steria Limited,Large,944675,79661.93,IT Printer Managed Service,Administration
Land Registry,Land Registry,02/05/2013,Internal Audit,"Computer Equipment Purchases <1,000",Steria Limited,Large,944675,37.82,"Computer Equipment Purchases <1,000",Administration
Land Registry,Land Registry,03/05/2013,Dir: Operations,DITI Impact Change Controls Only,Steria Limited,Large,945011,23532.08,IT Managed Service Change Controls,Administration
Land Registry,Land Registry,03/05/2013,Property Asset Management Group,Rent Payable,Jones Lang LaSalle Ltd,Large,212703,1140,Rent Payable,Administration
Land Registry,Land Registry,07/05/2013,Weymouth Office,Rates Payable,West Dorset District Council,Large,470114,18487,Rates Payable,Administration
Land Registry,Land Registry,08/05/2013,IS Service Delivery,Computer Equipment Maintenance,CGI IT UK Limited,Large,945675,86872,Computer Equipment Maintenance,Administration
Land Registry,Land Registry,08/05/2013,Independent Adjudicator,Independent Adjudicators's Office Costs,HM Courts & Tribunals Service,Large,945678,2643000,Independent Adjudicators's Office Costs,Administration
Land Registry,Land Registry,08/05/2013,IS Service Delivery,Computer Equipment Maintenance,IBM United Kingdom Ltd,Large,945679,2656471,Computer Equipment Maintenance,Administration
Land Registry,Land Registry,08/05/2013,Dir: Finance,Consultancy IT Advice Only,PA Consulting Services Ltd,SME,945681,50000,Consultancy IT Advice Only,Administration
Land Registry,Land Registry,09/05/2013,Dir: Operations,Property Maintenance,Carillion Services Ltd,Large,945881,128687.7,Property Maintenance,Administration
Land Registry,Land Registry,09/05/2013,Central Facilities Management Team,Hays Document Exchange (DX),DX Network Services Ltd,Large,946656,453366.12,DX Postage,Administration
Land Registry,Land Registry,09/05/2013,Forward Scanning,Maps & Plans Data Migration,TNT (UK) Ltd,Large,945953,210572.21,Maps & Plans Data Migration,Administration
Land Registry,Land Registry,10/05/2013,Finance Director,Employment Agency Staff Costs,Penna Plc,Large,946254,24360,Employment Agency Staff Costs,Administration
Land Registry,Land Registry,10/05/2013,Wales Office,Letter Post,Royal Mail,Large,946256,7464.37,Letter Post,Administration
Land Registry,Land Registry,10/05/2013,Durham Office,Letter Post,Royal Mail,Large,946256,7372.58,Letter Post,Administration
Land Registry,Land Registry,10/05/2013,Peterborough Office,Letter Post,Royal Mail,Large,946256,3181.5,Letter Post,Administration
Land Registry,Land Registry,10/05/2013,Fylde Office,Letter Post,Royal Mail,Large,946256,6124.32,Letter Post,Administration
Land Registry,Land Registry,10/05/2013,Croydon Office,Letter Post,Royal Mail,Large,946256,2840.54,Letter Post,Administration
Land Registry,Land Registry,10/05/2013,Gloucester Office,Letter Post,Royal Mail,Large,946256,4227.84,Letter Post,Administration
Land Registry,Land Registry,10/05/2013,Leicester Office,Letter Post,Royal Mail,Large,946256,2740.08,Letter Post,Administration
Land Registry,Land Registry,10/05/2013,Nottingham Office,Letter Post,Royal Mail,Large,946256,5560.57,Letter Post,Administration
Land Registry,Land Registry,10/05/2013,Plymouth Office,Letter Post,Royal Mail,Large,946256,3426.92,Letter Post,Administration
Land Registry,Land Registry,10/05/2013,Weymouth Office,Letter Post,Royal Mail,Large,946256,3120.46,Letter Post,Administration
Land Registry,Land Registry,10/05/2013,Telford Office,Letter Post,Royal Mail,Large,946256,3610.04,Letter Post,Administration
Land Registry,Land Registry,10/05/2013,Coventry Office,Letter Post,Royal Mail,Large,946256,13076.72,Letter Post,Administration
Land Registry,Land Registry,10/05/2013,Hull Office,Letter Post,Royal Mail,Large,946256,-627.14,Letter Post,Administration
Land Registry,Land Registry,10/05/2013,Croydon Sub-Office,Letter Post,Royal Mail,Large,946256,393.33,Letter Post,Administration
Land Registry,Land Registry,10/05/2013,Birkenhead Office,Letter Post,Royal Mail,Large,946256,4791.21,Letter Post,Administration
Land Registry,Land Registry,10/05/2013,Land Charges,Letter Post,Royal Mail,Large,946256,1142.31,Letter Post,Administration
Land Registry,Land Registry,10/05/2013,Central Facilities Management Team,Letter Post,Royal Mail,Large,946256,1.36,Letter Post,Administration
Land Registry,Land Registry,10/05/2013,IS Service Delivery,Letter Post,Royal Mail,Large,946256,18092.07,Letter Post,Administration
Land Registry,Land Registry,10/05/2013,Peterborough Office,Parcel and Datapost,Royal Mail,Large,946256,12.77,Parcel and Datapost,Administration
Land Registry,Land Registry,10/05/2013,Hull Office,Rates Payable,Kingston Upon Hull City Council,Large,470274,13424,Rates Payable,Administration
Land Registry,Land Registry,13/05/2013,Finance Director,Consultancy Non-IT Advice Only,Lane Clark & Peacock LLP,Large,946323,50000,Consultancy Non-IT Advice Only,Administration
Land Registry,Land Registry,14/05/2013,Dir: (Add Value) Commercial & Customer,Information to Third Parties & Open Days,Ordnance Survey,Large,946382,24824.77,Information to Third Parties & Open Days,Administration
Land Registry,Land Registry,14/05/2013,Survey & Mapping Services,Ordnance Survey Surveys,Ordnance Survey,Large,946382,675495.2,Ordnance Survey Surveys,Administration
Land Registry,Land Registry,14/05/2013,Guarantee & Litigation,Ind Legal Costs,Treasury Solicitors,Large,946386,37041.14,Indemnity Legal Costs,Administration
Land Registry,Land Registry,15/05/2013,Dir: Finance,Computer Equipment Hire,Anaplan Inc,SME,946840,106002,Computer Equipment Hire,Administration
Land Registry,Land Registry,15/05/2013,IS Service Delivery,DITI Impact Change Controls Only,Steria Limited,Large,946429,24151.23,IT Managed Service Change Controls,Administration
Land Registry,Land Registry,15/05/2013,Property Asset Management Group,Rent Payable,Jones Lang LaSalle Ltd,Large,470405,375,Rent Payable,Administration
Land Registry,Land Registry,15/05/2013,Property Asset Management Group,Rent Payable,Jones Lang LaSalle Ltd,Large,470405,1125,Rent Payable,Administration
Land Registry,Land Registry,15/05/2013,Property Asset Management Group,Rent Payable,Jones Lang LaSalle Ltd,Large,470405,1500,Rent Payable,Administration
Land Registry,Land Registry,16/05/2013,Fylde Office,Security Expenses,Carillion Services Ltd,Large,946477,2606.37,Security Expenses,Administration
Land Registry,Land Registry,16/05/2013,Durham Office,FF&F:Maintenance,Carillion Services Ltd,Large,946477,182.32,FF&F:Maintenance,Administration
Land Registry,Land Registry,16/05/2013,Weymouth Office,Gas,Carillion Services Ltd,Large,946477,2665.44,Gas,Administration
Land Registry,Land Registry,16/05/2013,RFS1 - Telford,Gas,Carillion Services Ltd,Large,946477,413.97,Gas,Administration
Land Registry,Land Registry,16/05/2013,Telford Office,Gas,Carillion Services Ltd,Large,946477,5000.38,Gas,Administration
Land Registry,Land Registry,16/05/2013,Telford Office,Electricity,Carillion Services Ltd,Large,946477,4878.39,Electricity,Administration
Land Registry,Land Registry,16/05/2013,Birkenhead Office,Gas,Carillion Services Ltd,Large,946477,3023.39,Gas,Administration
Land Registry,Land Registry,16/05/2013,Birkenhead Office,Office Cleaning Expenses,Carillion Services Ltd,Large,946477,5887.16,Office Cleaning Expenses,Administration
Land Registry,Land Registry,16/05/2013,Birkenhead Office,Electricity,Carillion Services Ltd,Large,946477,3804.08,Electricity,Administration
Land Registry,Land Registry,16/05/2013,Wales Office,Gas,Carillion Services Ltd,Large,946477,1910.91,Gas,Administration
Land Registry,Land Registry,16/05/2013,Weymouth Office,Waste Disposal,Carillion Services Ltd,Large,946477,221.17,Waste Disposal,Administration
Land Registry,Land Registry,16/05/2013,Wales Office,Electricity,Carillion Services Ltd,Large,946477,4521.44,Electricity,Administration
Land Registry,Land Registry,16/05/2013,Croydon Office,Security Expenses,Carillion Services Ltd,Large,946477,8783.14,Security Expenses,Administration
Land Registry,Land Registry,16/05/2013,Croydon Office,FF&F:Maintenance,Carillion Services Ltd,Large,946477,182.32,FF&F:Maintenance,Administration
Land Registry,Land Registry,16/05/2013,Hull Office,Electricity,Carillion Services Ltd,Large,946477,5880.46,Electricity,Administration
Land Registry,Land Registry,16/05/2013,Telford Office,Water,Carillion Services Ltd,Large,946477,1183.54,Water,Administration
Land Registry,Land Registry,16/05/2013,Fylde Office,Electricity,Carillion Services Ltd,Large,946477,4442.88,Electricity,Administration
Land Registry,Land Registry,16/05/2013,Durham Office,Electricity,Carillion Services Ltd,Large,946477,3878.86,Electricity,Administration
Land Registry,Land Registry,16/05/2013,Birkenhead Office,Security Expenses,Carillion Services Ltd,Large,946477,3251.88,Security Expenses,Administration
Land Registry,Land Registry,16/05/2013,Durham Office,Gas,Carillion Services Ltd,Large,946477,2877.45,Gas,Administration
Land Registry,Land Registry,16/05/2013,Coventry Office,Electricity,Carillion Services Ltd,Large,946477,5901.01,Electricity,Administration
Land Registry,Land Registry,16/05/2013,Coventry Office,FF&F:Maintenance,Carillion Services Ltd,Large,946477,182.32,FF&F:Maintenance,Administration
Land Registry,Land Registry,16/05/2013,Coventry Office,Pest Control,Carillion Services Ltd,Large,946477,53.17,Pest Control,Administration
Land Registry,Land Registry,16/05/2013,Leicester Office,Gas,Carillion Services Ltd,Large,946477,-1245.96,Gas,Administration
Land Registry,Land Registry,16/05/2013,Weymouth Office,Property Maintenance,Carillion Services Ltd,Large,946477,2655.24,Property Maintenance,Administration
Land Registry,Land Registry,16/05/2013,Fylde Office,Pest Control,Carillion Services Ltd,Large,946477,39.44,Pest Control,Administration
Land Registry,Land Registry,16/05/2013,Hull Office,Water,Carillion Services Ltd,Large,946477,338.31,Water,Administration
Land Registry,Land Registry,16/05/2013,RFS1 - Telford,Electricity,Carillion Services Ltd,Large,946477,25.27,Electricity,Administration
Land Registry,Land Registry,16/05/2013,Coventry Office,Gas,Carillion Services Ltd,Large,946477,6576.41,Gas,Administration
Land Registry,Land Registry,16/05/2013,Leicester Office,Electricity,Carillion Services Ltd,Large,946477,2794.33,Electricity,Administration
Land Registry,Land Registry,16/05/2013,Wales Office,Security Expenses,Carillion Services Ltd,Large,946477,2906.31,Security Expenses,Administration
Land Registry,Land Registry,16/05/2013,Gloucester Office,Gas,Carillion Services Ltd,Large,946477,3001.07,Gas,Administration
Land Registry,Land Registry,16/05/2013,Hull Office,Gas,Carillion Services Ltd,Large,946477,4658.54,Gas,Administration
Land Registry,Land Registry,16/05/2013,RFS5 - Durham Belmont,Gas,Carillion Services Ltd,Large,946477,955.68,Gas,Administration
Land Registry,Land Registry,16/05/2013,Fylde Office,Gas,Carillion Services Ltd,Large,946477,2579.76,Gas,Administration
Land Registry,Land Registry,16/05/2013,Birkenhead Office,Property Maintenance,Carillion Services Ltd,Large,946477,4899,Property Maintenance,Administration
Land Registry,Land Registry,16/05/2013,Durham Office,Security Expenses,Carillion Services Ltd,Large,946477,3465.83,Security Expenses,Administration
Land Registry,Land Registry,16/05/2013,Coventry Office,Waste Disposal,Carillion Services Ltd,Large,946477,348.33,Waste Disposal,Administration
Land Registry,Land Registry,16/05/2013,Fylde Office,FF&F:Maintenance,Carillion Services Ltd,Large,946477,182.32,FF&F:Maintenance,Administration
Land Registry,Land Registry,16/05/2013,Weymouth Office,Electricity,Carillion Services Ltd,Large,946477,3494.58,Electricity,Administration
Land Registry,Land Registry,16/05/2013,Coventry Office,Water,Carillion Services Ltd,Large,946477,3896.12,Water,Administration
Land Registry,Land Registry,16/05/2013,Telford Office,Office Cleaning Expenses,Carillion Services Ltd,Large,946477,5277.53,Office Cleaning Expenses,Administration
Land Registry,Land Registry,16/05/2013,Gloucester Office,Water,Carillion Services Ltd,Large,946477,919,Water,Administration
Land Registry,Land Registry,16/05/2013,Gloucester Office,Electricity,Carillion Services Ltd,Large,946477,4531.1,Electricity,Administration
Land Registry,Land Registry,16/05/2013,Wales Office,Waste Disposal,Carillion Services Ltd,Large,946477,519.08,Waste Disposal,Administration
Land Registry,Land Registry,16/05/2013,Croydon Office,Property Maintenance,Carillion Services Ltd,Large,946477,9057.78,Property Maintenance,Administration
Land Registry,Land Registry,16/05/2013,Croydon Office,Electricity,Carillion Services Ltd,Large,946477,6718.06,Electricity,Administration
Land Registry,Land Registry,16/05/2013,Croydon Office,Vending Machine Consumables & Repairs,Carillion Services Ltd,Large,946477,189.13,Vending Machine Consumables & Repairs,Administration
Land Registry,Land Registry,16/05/2013,Croydon Office,Waste Disposal,Carillion Services Ltd,Large,946477,242.92,Waste Disposal,Administration
Land Registry,Land Registry,16/05/2013,Gloucester Office,Office Cleaning Expenses,Carillion Services Ltd,Large,946477,5950.8,Office Cleaning Expenses,Administration
Land Registry,Land Registry,16/05/2013,Gloucester Office,Waste Disposal,Carillion Services Ltd,Large,946477,232.75,Waste Disposal,Administration
Land Registry,Land Registry,16/05/2013,Gloucester Office,Security Expenses,Carillion Services Ltd,Large,946477,10518.32,Security Expenses,Administration
Land Registry,Land Registry,16/05/2013,Gloucester Office,FF&F:Maintenance,Carillion Services Ltd,Large,946477,182.32,FF&F:Maintenance,Administration
Land Registry,Land Registry,16/05/2013,Leicester Office,FF&F:Maintenance,Carillion Services Ltd,Large,946477,273.48,FF&F:Maintenance,Administration
Land Registry,Land Registry,16/05/2013,Croydon Office,Office Cleaning Expenses,Carillion Services Ltd,Large,946477,5876.73,Office Cleaning Expenses,Administration
Land Registry,Land Registry,16/05/2013,Durham Office,Pest Control,Carillion Services Ltd,Large,946477,48.8,Pest Control,Administration
Land Registry,Land Registry,16/05/2013,Gloucester Office,Property Maintenance,Carillion Services Ltd,Large,946477,3244.03,Property Maintenance,Administration
Land Registry,Land Registry,16/05/2013,Birkenhead Office,Waste Disposal,Carillion Services Ltd,Large,946477,629.75,Waste Disposal,Administration
Land Registry,Land Registry,16/05/2013,Peterborough Office,Vending Machine Consumables & Repairs,Carillion Services Ltd,Large,946477,161.35,Vending Machine Consumables & Repairs,Administration
Land Registry,Land Registry,16/05/2013,Hull Office,Grounds Maintenance,Carillion Services Ltd,Large,946477,664.91,Grounds Maintenance,Administration
Land Registry,Land Registry,16/05/2013,Durham Office,Property Maintenance,Carillion Services Ltd,Large,946477,5736.2,Property Maintenance,Administration
Land Registry,Land Registry,16/05/2013,Durham Office,Office Cleaning Expenses,Carillion Services Ltd,Large,946477,8688.84,Office Cleaning Expenses,Administration
Land Registry,Land Registry,16/05/2013,Durham Office,Waste Disposal,Carillion Services Ltd,Large,946477,365.5,Waste Disposal,Administration
Land Registry,Land Registry,16/05/2013,Weymouth Office,Office Cleaning Expenses,Carillion Services Ltd,Large,946477,4044.96,Office Cleaning Expenses,Administration
Land Registry,Land Registry,16/05/2013,Weymouth Office,Pest Control,Carillion Services Ltd,Large,946477,66.89,Pest Control,Administration
Land Registry,Land Registry,16/05/2013,Weymouth Office,Security Expenses,Carillion Services Ltd,Large,946477,3129.65,Security Expenses,Administration
Land Registry,Land Registry,16/05/2013,Weymouth Office,FF&F:Maintenance,Carillion Services Ltd,Large,946477,273.48,FF&F:Maintenance,Administration
Land Registry,Land Registry,16/05/2013,Peterborough Office,Property Maintenance,Carillion Services Ltd,Large,946477,2225.32,Property Maintenance,Administration
Land Registry,Land Registry,16/05/2013,Peterborough Office,Office Cleaning Expenses,Carillion Services Ltd,Large,946477,9738.95,Office Cleaning Expenses,Administration
Land Registry,Land Registry,16/05/2013,Peterborough Office,Pest Control,Carillion Services Ltd,Large,946477,57.54,Pest Control,Administration
Land Registry,Land Registry,16/05/2013,Peterborough Office,Waste Disposal,Carillion Services Ltd,Large,946477,242.92,Waste Disposal,Administration
Land Registry,Land Registry,16/05/2013,Peterborough Office,Security Expenses,Carillion Services Ltd,Large,946477,3248.91,Security Expenses,Administration
Land Registry,Land Registry,16/05/2013,Peterborough Office,FF&F:Maintenance,Carillion Services Ltd,Large,946477,182.32,FF&F:Maintenance,Administration
Land Registry,Land Registry,16/05/2013,Telford Office,Property Maintenance,Carillion Services Ltd,Large,946477,5659.25,Property Maintenance,Administration
Land Registry,Land Registry,16/05/2013,Telford Office,Pest Control,Carillion Services Ltd,Large,946477,44.77,Pest Control,Administration
Land Registry,Land Registry,16/05/2013,Telford Office,Waste Disposal,Carillion Services Ltd,Large,946477,278.25,Waste Disposal,Administration
Land Registry,Land Registry,16/05/2013,Telford Office,Security Expenses,Carillion Services Ltd,Large,946477,2847.69,Security Expenses,Administration
Land Registry,Land Registry,16/05/2013,Telford Office,FF&F:Maintenance,Carillion Services Ltd,Large,946477,182.32,FF&F:Maintenance,Administration
Land Registry,Land Registry,16/05/2013,Coventry Office,Property Maintenance,Carillion Services Ltd,Large,946477,10787.56,Property Maintenance,Administration
Land Registry,Land Registry,16/05/2013,Coventry Office,Office Cleaning Expenses,Carillion Services Ltd,Large,946477,7668.88,Office Cleaning Expenses,Administration
Land Registry,Land Registry,16/05/2013,Coventry Office,Vending Machine Consumables & Repairs,Carillion Services Ltd,Large,946477,222.09,Vending Machine Consumables & Repairs,Administration
Land Registry,Land Registry,16/05/2013,Coventry Office,Security Expenses,Carillion Services Ltd,Large,946477,7931.49,Security Expenses,Administration
Land Registry,Land Registry,16/05/2013,Hull Office,Property Maintenance,Carillion Services Ltd,Large,946477,5863.87,Property Maintenance,Administration
Land Registry,Land Registry,16/05/2013,Hull Office,Office Cleaning Expenses,Carillion Services Ltd,Large,946477,5191.03,Office Cleaning Expenses,Administration
Land Registry,Land Registry,16/05/2013,Hull Office,Pest Control,Carillion Services Ltd,Large,946477,49.84,Pest Control,Administration
Land Registry,Land Registry,16/05/2013,Hull Office,Vending Machine Consumables & Repairs,Carillion Services Ltd,Large,946477,215.2,Vending Machine Consumables & Repairs,Administration
Land Registry,Land Registry,16/05/2013,Hull Office,Waste Disposal,Carillion Services Ltd,Large,946477,139.08,Waste Disposal,Administration
Land Registry,Land Registry,16/05/2013,Hull Office,Security Expenses,Carillion Services Ltd,Large,946477,3234.32,Security Expenses,Administration
Land Registry,Land Registry,16/05/2013,Hull Office,FF&F:Maintenance,Carillion Services Ltd,Large,946477,182.32,FF&F:Maintenance,Administration
Land Registry,Land Registry,16/05/2013,Leicester Office,Property Maintenance,Carillion Services Ltd,Large,946477,8324.54,Property Maintenance,Administration
Land Registry,Land Registry,16/05/2013,Leicester Office,Office Cleaning Expenses,Carillion Services Ltd,Large,946477,3768.01,Office Cleaning Expenses,Administration
Land Registry,Land Registry,16/05/2013,Leicester Office,Vending Machine Consumables & Repairs,Carillion Services Ltd,Large,946477,157.74,Vending Machine Consumables & Repairs,Administration
Land Registry,Land Registry,16/05/2013,Leicester Office,Waste Disposal,Carillion Services Ltd,Large,946477,331.58,Waste Disposal,Administration
Land Registry,Land Registry,16/05/2013,Leicester Office,Security Expenses,Carillion Services Ltd,Large,946477,2741.88,Security Expenses,Administration
Land Registry,Land Registry,16/05/2013,Wales Office,Property Maintenance,Carillion Services Ltd,Large,946477,4901.77,Property Maintenance,Administration
Land Registry,Land Registry,16/05/2013,Wales Office,Office Cleaning Expenses,Carillion Services Ltd,Large,946477,4889.44,Office Cleaning Expenses,Administration
Land Registry,Land Registry,16/05/2013,Wales Office,Pest Control,Carillion Services Ltd,Large,946477,59.11,Pest Control,Administration
Land Registry,Land Registry,16/05/2013,Wales Office,FF&F:Maintenance,Carillion Services Ltd,Large,946477,364.64,FF&F:Maintenance,Administration
Land Registry,Land Registry,16/05/2013,Nottingham Office,Property Maintenance,Carillion Services Ltd,Large,946477,12119.62,Property Maintenance,Administration
Land Registry,Land Registry,16/05/2013,Nottingham Office,Electricity,Carillion Services Ltd,Large,946477,11610.64,Electricity,Administration
Land Registry,Land Registry,16/05/2013,Nottingham Office,Gas,Carillion Services Ltd,Large,946477,13663.63,Gas,Administration
Land Registry,Land Registry,16/05/2013,Nottingham Office,Office Cleaning Expenses,Carillion Services Ltd,Large,946477,11577.22,Office Cleaning Expenses,Administration
Land Registry,Land Registry,16/05/2013,Nottingham Office,Pest Control,Carillion Services Ltd,Large,946477,61.39,Pest Control,Administration
Land Registry,Land Registry,16/05/2013,Nottingham Office,Waste Disposal,Carillion Services Ltd,Large,946477,904.83,Waste Disposal,Administration
Land Registry,Land Registry,16/05/2013,Nottingham Office,Security Expenses,Carillion Services Ltd,Large,946477,20150.13,Security Expenses,Administration
Land Registry,Land Registry,16/05/2013,Nottingham Office,FF&F:Maintenance,Carillion Services Ltd,Large,946477,182.32,FF&F:Maintenance,Administration
Land Registry,Land Registry,16/05/2013,Birkenhead Office,Grounds Maintenance,Carillion Services Ltd,Large,946477,385.44,Grounds Maintenance,Administration
Land Registry,Land Registry,16/05/2013,Birkenhead Office,Water,Carillion Services Ltd,Large,946477,3582.77,Water,Administration
Land Registry,Land Registry,16/05/2013,Birkenhead Office,Pest Control,Carillion Services Ltd,Large,946477,41.71,Pest Control,Administration
Land Registry,Land Registry,16/05/2013,Birkenhead Office,FF&F:Maintenance,Carillion Services Ltd,Large,946477,182.32,FF&F:Maintenance,Administration
Land Registry,Land Registry,16/05/2013,Fylde Office,Property Maintenance,Carillion Services Ltd,Large,946477,3688.68,Property Maintenance,Administration
Land Registry,Land Registry,16/05/2013,Fylde Office,Office Cleaning Expenses,Carillion Services Ltd,Large,946477,5363.75,Office Cleaning Expenses,Administration
Land Registry,Land Registry,16/05/2013,Fylde Office,Vending Machine Consumables & Repairs,Carillion Services Ltd,Large,946477,218.76,Vending Machine Consumables & Repairs,Administration
Land Registry,Land Registry,16/05/2013,Fylde Office,Waste Disposal,Carillion Services Ltd,Large,946477,110.83,Waste Disposal,Administration
Land Registry,Land Registry,16/05/2013,RFS5 - Durham Belmont,Property Maintenance,Carillion Services Ltd,Large,946477,2453.64,Property Maintenance,Administration
Land Registry,Land Registry,16/05/2013,RFS5 - Durham Belmont,Water,Carillion Services Ltd,Large,946477,3277.34,Water,Administration
Land Registry,Land Registry,16/05/2013,RFS4 - Coventry,Property Maintenance,Carillion Services Ltd,Large,946477,55.24,Property Maintenance,Administration
Land Registry,Land Registry,16/05/2013,RFS4 - Coventry,Office Cleaning Expenses,Carillion Services Ltd,Large,946477,234.75,Office Cleaning Expenses,Administration
Land Registry,Land Registry,16/05/2013,RFS1 - Telford,Property Maintenance,Carillion Services Ltd,Large,946477,1696.89,Property Maintenance,Administration
Land Registry,Land Registry,16/05/2013,Weymouth Office,Vending Machine Consumables & Repairs,Carillion Services Ltd,Large,946477,120.1,Vending Machine Consumables & Repairs,Administration
Land Registry,Land Registry,16/05/2013,Fylde Office,Grounds Maintenance,Carillion Services Ltd,Large,946477,1374.54,Grounds Maintenance,Administration
Land Registry,Land Registry,16/05/2013,Independent Complaints Reviewer,Electricity,Carillion Services Ltd,Large,946477,4.15,Electricity,Administration
Land Registry,Land Registry,16/05/2013,Leicester Office,Pest Control,Carillion Services Ltd,Large,946477,55.62,Pest Control,Administration
Land Registry,Land Registry,16/05/2013,Croydon Office,Pest Control,Carillion Services Ltd,Large,946477,40.05,Pest Control,Administration
Land Registry,Land Registry,16/05/2013,Telford Office,Grounds Maintenance,Carillion Services Ltd,Large,946477,1241.32,Grounds Maintenance,Administration
Land Registry,Land Registry,16/05/2013,Weymouth Office,Grounds Maintenance,Carillion Services Ltd,Large,946477,720.17,Grounds Maintenance,Administration
Land Registry,Land Registry,16/05/2013,Leicester Office,Grounds Maintenance,Carillion Services Ltd,Large,946477,236.56,Grounds Maintenance,Administration
Land Registry,Land Registry,16/05/2013,Gloucester Office,Grounds Maintenance,Carillion Services Ltd,Large,946477,671.75,Grounds Maintenance,Administration
Land Registry,Land Registry,16/05/2013,Durham Office,Grounds Maintenance,Carillion Services Ltd,Large,946477,952.36,Grounds Maintenance,Administration
Land Registry,Land Registry,16/05/2013,Gloucester Office,Pest Control,Carillion Services Ltd,Large,946477,46.52,Pest Control,Administration
Land Registry,Land Registry,16/05/2013,Gloucester Computer Centre,Electricity,Carillion Services Ltd,Large,946477,21152.26,Electricity,Administration
Land Registry,Land Registry,16/05/2013,Gloucester Computer Centre,Security Expenses,Carillion Services Ltd,Large,946477,8269.97,Security Expenses,Administration
Land Registry,Land Registry,16/05/2013,Nottingham Office,Grounds Maintenance,Carillion Services Ltd,Large,946477,3786.98,Grounds Maintenance,Administration
Land Registry,Land Registry,16/05/2013,Gloucester Computer Centre,Gas,Carillion Services Ltd,Large,946477,665.9,Gas,Administration
Land Registry,Land Registry,16/05/2013,Gloucester Computer Centre,Waste Disposal,Carillion Services Ltd,Large,946477,92.67,Waste Disposal,Administration
Land Registry,Land Registry,16/05/2013,Gloucester Computer Centre,Property Maintenance,Carillion Services Ltd,Large,946477,6819.98,Property Maintenance,Administration
Land Registry,Land Registry,16/05/2013,RFS15 - Plymouth Drakes Hill Court,Electricity,Carillion Services Ltd,Large,946477,2114.85,Electricity,Administration
Land Registry,Land Registry,16/05/2013,RFS15 - Plymouth Drakes Hill Court,Gas,Carillion Services Ltd,Large,946477,2149.28,Gas,Administration
Land Registry,Land Registry,16/05/2013,RFS15 - Plymouth Drakes Hill Court,Office Cleaning Expenses,Carillion Services Ltd,Large,946477,451.77,Office Cleaning Expenses,Administration
Land Registry,Land Registry,16/05/2013,Coventry Office,Grounds Maintenance,Carillion Services Ltd,Large,946477,787.63,Grounds Maintenance,Administration
Land Registry,Land Registry,16/05/2013,Gloucester Office,Vending Machine Consumables & Repairs,Carillion Services Ltd,Large,946477,729.73,Vending Machine Consumables & Repairs,Administration
Land Registry,Land Registry,16/05/2013,Wales Office,Vending Machine Consumables & Repairs,Carillion Services Ltd,Large,946477,182.05,Vending Machine Consumables & Repairs,Administration
Land Registry,Land Registry,16/05/2013,Wales Office,Grounds Maintenance,Carillion Services Ltd,Large,946477,530.47,Grounds Maintenance,Administration
Land Registry,Land Registry,16/05/2013,Gloucester Computer Centre,Pest Control,Carillion Services Ltd,Large,946477,28.51,Pest Control,Administration
Land Registry,Land Registry,16/05/2013,RFS15 - Plymouth Drakes Hill Court,FF&F:Maintenance,Carillion Services Ltd,Large,946477,91.16,FF&F:Maintenance,Administration
Land Registry,Land Registry,16/05/2013,RFS15 - Plymouth Drakes Hill Court,Waste Disposal,Carillion Services Ltd,Large,946477,19.92,Waste Disposal,Administration
Land Registry,Land Registry,16/05/2013,RFS15 - Plymouth Drakes Hill Court,Property Maintenance,Carillion Services Ltd,Large,946477,3354.8,Property Maintenance,Administration
Land Registry,Land Registry,16/05/2013,RFS15 - Plymouth Drakes Hill Court,Pest Control,Carillion Services Ltd,Large,946477,540.84,Pest Control,Administration
Land Registry,Land Registry,16/05/2013,Telford Office,Vending Machine Consumables & Repairs,Carillion Services Ltd,Large,946477,226.96,Vending Machine Consumables & Repairs,Administration
Land Registry,Land Registry,16/05/2013,Gloucester Computer Centre,FF&F:Maintenance,Carillion Services Ltd,Large,946477,182.32,FF&F:Maintenance,Administration
Land Registry,Land Registry,16/05/2013,Croydon Office,Grounds Maintenance,Carillion Services Ltd,Large,946477,80.86,Grounds Maintenance,Administration
Land Registry,Land Registry,16/05/2013,Gloucester Computer Centre,Grounds Maintenance,Carillion Services Ltd,Large,946477,157.07,Grounds Maintenance,Administration
Land Registry,Land Registry,16/05/2013,Peterborough Office,Grounds Maintenance,Carillion Services Ltd,Large,946477,157.07,Grounds Maintenance,Administration
Land Registry,Land Registry,16/05/2013,RFS15 - Plymouth Drakes Hill Court,Grounds Maintenance,Carillion Services Ltd,Large,946477,295.91,Grounds Maintenance,Administration
Land Registry,Land Registry,16/05/2013,Nottingham Office,Vending Machine Consumables & Repairs,Carillion Services Ltd,Large,946477,176.93,Vending Machine Consumables & Repairs,Administration
Land Registry,Land Registry,16/05/2013,Governance & Policy,FM Managed Services,Carillion Services Ltd,Large,946477,11114.05,Facilities Managed Service,Administration
Land Registry,Land Registry,16/05/2013,Governance & Policy,FM Ext Helpdesk,Carillion Services Ltd,Large,946477,1253.51,Facilities External Help Desk,Administration
Land Registry,Land Registry,16/05/2013,RFS15 - Plymouth Drakes Hill Court,FM Managed Services,Carillion Services Ltd,Large,946477,668.43,Facilities Managed Service,Administration
Land Registry,Land Registry,16/05/2013,RFS15 - Plymouth Drakes Hill Court,FM Ext Helpdesk,Carillion Services Ltd,Large,946477,117.9,Facilities External Help Desk,Administration
Land Registry,Land Registry,16/05/2013,Weymouth Office,FM Managed Services,Carillion Services Ltd,Large,946477,3947.53,Facilities Managed Service,Administration
Land Registry,Land Registry,16/05/2013,Weymouth Office,FM Ext Helpdesk,Carillion Services Ltd,Large,946477,303.73,Facilities External Help Desk,Administration
Land Registry,Land Registry,16/05/2013,Croydon Office,FM Managed Services,Carillion Services Ltd,Large,946477,8081.41,Facilities Managed Service,Administration
Land Registry,Land Registry,16/05/2013,Croydon Office,FM Ext Helpdesk,Carillion Services Ltd,Large,946477,473.24,Facilities External Help Desk,Administration
Land Registry,Land Registry,16/05/2013,Wales Office,FM Managed Services,Carillion Services Ltd,Large,946477,7566.03,Facilities Managed Service,Administration
Land Registry,Land Registry,16/05/2013,Wales Office,FM Ext Helpdesk,Carillion Services Ltd,Large,946477,373.63,Facilities External Help Desk,Administration
Land Registry,Land Registry,16/05/2013,Coventry Office,FM Managed Services,Carillion Services Ltd,Large,946477,7875.53,Facilities Managed Service,Administration
Land Registry,Land Registry,16/05/2013,Coventry Office,FM Ext Helpdesk,Carillion Services Ltd,Large,946477,797.74,Facilities External Help Desk,Administration
Land Registry,Land Registry,16/05/2013,Gloucester Office,FM Managed Services,Carillion Services Ltd,Large,946477,4179.51,Facilities Managed Service,Administration
Land Registry,Land Registry,16/05/2013,Gloucester Office,FM Ext Helpdesk,Carillion Services Ltd,Large,946477,494.21,Facilities External Help Desk,Administration
Land Registry,Land Registry,16/05/2013,Gloucester Computer Centre,FM Managed Services,Carillion Services Ltd,Large,946477,1859.04,Facilities Managed Service,Administration
Land Registry,Land Registry,16/05/2013,Gloucester Computer Centre,FM Ext Helpdesk,Carillion Services Ltd,Large,946477,458.47,Facilities External Help Desk,Administration
Land Registry,Land Registry,16/05/2013,Leicester Office,FM Managed Services,Carillion Services Ltd,Large,946477,3728.36,Facilities Managed Service,Administration
Land Registry,Land Registry,16/05/2013,Leicester Office,FM Ext Helpdesk,Carillion Services Ltd,Large,946477,431.64,Facilities External Help Desk,Administration
Land Registry,Land Registry,16/05/2013,Nottingham Office,FM Managed Services,Carillion Services Ltd,Large,946477,9922.54,Facilities Managed Service,Administration
Land Registry,Land Registry,16/05/2013,Nottingham Office,FM Ext Helpdesk,Carillion Services Ltd,Large,946477,1409.74,Facilities External Help Desk,Administration
Land Registry,Land Registry,16/05/2013,Peterborough Office,FM Managed Services,Carillion Services Ltd,Large,946477,4092.01,Facilities Managed Service,Administration
Land Registry,Land Registry,16/05/2013,Peterborough Office,FM Ext Helpdesk,Carillion Services Ltd,Large,946477,465.62,Facilities External Help Desk,Administration
Land Registry,Land Registry,16/05/2013,Telford Office,FM Managed Services,Carillion Services Ltd,Large,946477,3680.07,Facilities Managed Service,Administration
Land Registry,Land Registry,16/05/2013,Telford Office,FM Ext Helpdesk,Carillion Services Ltd,Large,946477,417.21,Facilities External Help Desk,Administration
Land Registry,Land Registry,16/05/2013,RFS1 - Telford,FM Managed Services,Carillion Services Ltd,Large,946477,347.6,Facilities Managed Service,Administration
Land Registry,Land Registry,16/05/2013,RFS1 - Telford,FM Ext Helpdesk,Carillion Services Ltd,Large,946477,103.92,Facilities External Help Desk,Administration
Land Registry,Land Registry,16/05/2013,Birkenhead Office,FM Managed Services,Carillion Services Ltd,Large,946477,4806.84,Facilities Managed Service,Administration
Land Registry,Land Registry,16/05/2013,Birkenhead Office,FM Ext Helpdesk,Carillion Services Ltd,Large,946477,393.15,Facilities External Help Desk,Administration
Land Registry,Land Registry,16/05/2013,Durham Office,FM Managed Services,Carillion Services Ltd,Large,946477,7669.41,Facilities Managed Service,Administration
Land Registry,Land Registry,16/05/2013,Durham Office,FM Ext Helpdesk,Carillion Services Ltd,Large,946477,493.43,Facilities External Help Desk,Administration
Land Registry,Land Registry,16/05/2013,Fylde Office,FM Managed Services,Carillion Services Ltd,Large,946477,6919.51,Facilities Managed Service,Administration
Land Registry,Land Registry,16/05/2013,Fylde Office,FM Ext Helpdesk,Carillion Services Ltd,Large,946477,343.15,Facilities External Help Desk,Administration
Land Registry,Land Registry,16/05/2013,Hull Office,FM Managed Services,Carillion Services Ltd,Large,946477,4208.83,Facilities Managed Service,Administration
Land Registry,Land Registry,16/05/2013,Hull Office,FM Ext Helpdesk,Carillion Services Ltd,Large,946477,385.63,Facilities External Help Desk,Administration
Land Registry,Land Registry,16/05/2013,RFS4 - Coventry,FM Managed Services,Carillion Services Ltd,Large,946477,13.61,Facilities Managed Service,Administration
Land Registry,Land Registry,16/05/2013,RFS4 - Coventry,FM Ext Helpdesk,Carillion Services Ltd,Large,946477,7.09,Facilities External Help Desk,Administration
Land Registry,Land Registry,16/05/2013,Governance & Policy,Electricity,Carillion Services Ltd,Large,946477,34461.32,Electricity,Administration
Land Registry,Land Registry,16/05/2013,Governance & Policy,Gas,Carillion Services Ltd,Large,946477,4331.39,Gas,Administration
Land Registry,Land Registry,16/05/2013,Governance & Policy,Pest Control,Carillion Services Ltd,Large,946477,522.57,Pest Control,Administration
Land Registry,Land Registry,16/05/2013,Governance & Policy,Office Cleaning Expenses,Carillion Services Ltd,Large,946477,8502.3,Office Cleaning Expenses,Administration
Land Registry,Land Registry,16/05/2013,Governance & Policy,Security Expenses,Carillion Services Ltd,Large,946477,22575.17,Security Expenses,Administration
Land Registry,Land Registry,16/05/2013,Governance & Policy,Property Maintenance,Carillion Services Ltd,Large,946477,15413.84,Property Maintenance,Administration
Land Registry,Land Registry,16/05/2013,Governance & Policy,Grounds Maintenance,Carillion Services Ltd,Large,946477,1931.72,Grounds Maintenance,Administration
Land Registry,Land Registry,16/05/2013,Governance & Policy,FF&F:Maintenance,Carillion Services Ltd,Large,946477,546.96,FF&F:Maintenance,Administration
Land Registry,Land Registry,16/05/2013,Peterborough Office,Electricity,Carillion Services Ltd,Large,946477,-11847.14,Electricity,Administration
Land Registry,Land Registry,16/05/2013,Peterborough Office,Gas,Carillion Services Ltd,Large,946477,6982.24,Gas,Administration
Land Registry,Land Registry,16/05/2013,Dir: HR,Gas,Carillion Services Ltd,Large,946477,2075.95,Gas,Administration
Land Registry,Land Registry,16/05/2013,Dir: Finance,Gas,Carillion Services Ltd,Large,946477,238.46,Gas,Administration
Land Registry,Land Registry,16/05/2013,Governance & Policy,Waste Disposal,Carillion Services Ltd,Large,946477,2096,Waste Disposal,Administration
Land Registry,Land Registry,16/05/2013,Birkenhead Office,Vending Machine Consumables & Repairs,Carillion Services Ltd,Large,946477,737.23,Vending Machine Consumables & Repairs,Administration
Land Registry,Land Registry,16/05/2013,RFS8 - Birkenhead,Vending Machine Consumables & Repairs,Carillion Services Ltd,Large,946477,54.62,Vending Machine Consumables & Repairs,Administration
Land Registry,Land Registry,16/05/2013,Dir: HR,Electricity,Carillion Services Ltd,Large,946477,1305.78,Electricity,Administration
Land Registry,Land Registry,16/05/2013,Dir: HR,Water,Carillion Services Ltd,Large,946477,179.22,Water,Administration
Land Registry,Land Registry,16/05/2013,Dir: HR,Waste Disposal,Carillion Services Ltd,Large,946477,60.42,Waste Disposal,Administration
Land Registry,Land Registry,16/05/2013,Dir: HR,Office Cleaning Expenses,Carillion Services Ltd,Large,946477,752.09,Office Cleaning Expenses,Administration
Land Registry,Land Registry,16/05/2013,Dir: HR,Security Expenses,Carillion Services Ltd,Large,946477,935.41,Security Expenses,Administration
Land Registry,Land Registry,16/05/2013,Dir: HR,Property Management; Other Fees,Carillion Services Ltd,Large,946477,1527.96,Property Management; Other Fees,Administration
Land Registry,Land Registry,16/05/2013,Dir: Finance,"Property Management; Advice, Surveys & Inspections",Carillion Services Ltd,Large,946477,760,"Property Management; Advice, Surveys & Inspections",Administration
Land Registry,Land Registry,16/05/2013,Dir: Finance,Electricity,Carillion Services Ltd,Large,946477,1015.99,Electricity,Administration
Land Registry,Land Registry,16/05/2013,Dir: Finance,Water,Carillion Services Ltd,Large,946477,347.25,Water,Administration
Land Registry,Land Registry,16/05/2013,IS Service Delivery,DITI Impact Change Controls Only,Steria Limited,Large,946496,37653.87,IT Managed Service Change Controls,Administration
Land Registry,Land Registry,16/05/2013,Peterborough Office,Rates Payable,Peterborough City Council,Large,470476,3391.71,Rates Payable,Administration
Land Registry,Land Registry,16/05/2013,Peterborough Office,Rates Payable,Peterborough City Council,Large,470476,3519.7,Rates Payable,Administration
Land Registry,Land Registry,16/05/2013,Peterborough Office,Rates Payable,Peterborough City Council,Large,470476,1729.11,Rates Payable,Administration
Land Registry,Land Registry,16/05/2013,Peterborough Office,Rates Payable,Peterborough City Council,Large,470476,3615.69,Rates Payable,Administration
Land Registry,Land Registry,16/05/2013,Durham Office,Rates Payable,Durham County Council,Large,470463,4058.08,Rates Payable,Administration
Land Registry,Land Registry,17/05/2013,Central RFS,RFS Outsourced Services,TNT (UK) Ltd,Large,946565,108537.32,File Store Outsourced Services,Administration
Land Registry,Land Registry,17/05/2013,Central RFS,RFS Outsourced Services,TNT (UK) Ltd,Large,946565,177203.81,File Store Outsourced Services,Administration
Land Registry,Land Registry,20/05/2013,Nottingham Office,Rates Payable,Nottingham City Council,Large,212725,39495.91,Rates Payable,Administration
Land Registry,Land Registry,20/05/2013,Nottingham Office,Rates Payable,Nottingham City Council,Large,212725,21738.06,Rates Payable,Administration
Land Registry,Land Registry,20/05/2013,Nottingham Office,Rates Payable,Nottingham City Council,Large,212725,12629.51,Rates Payable,Administration
Land Registry,Land Registry,21/05/2013,Leicester Office,Stationery National Contracts,Banner Business Services Ltd,Large,946710,2060.34,Stationery National Contracts,Administration
Land Registry,Land Registry,21/05/2013,Durham Office,Stationery National Contracts,Banner Business Services Ltd,Large,946710,2973.3,Stationery National Contracts,Administration
Land Registry,Land Registry,21/05/2013,Fylde Office,Stationery National Contracts,Banner Business Services Ltd,Large,946710,1838.08,Stationery National Contracts,Administration
Land Registry,Land Registry,21/05/2013,Croydon Office,Stationery National Contracts,Banner Business Services Ltd,Large,946710,1009.03,Stationery National Contracts,Administration
Land Registry,Land Registry,21/05/2013,Gloucester Office,Stationery National Contracts,Banner Business Services Ltd,Large,946710,3000.28,Stationery National Contracts,Administration
Land Registry,Land Registry,21/05/2013,Nottingham Office,Stationery National Contracts,Banner Business Services Ltd,Large,946710,15503.54,Stationery National Contracts,Administration
Land Registry,Land Registry,21/05/2013,Birkenhead Office,Stationery National Contracts,Banner Business Services Ltd,Large,946710,2687.72,Stationery National Contracts,Administration
Land Registry,Land Registry,21/05/2013,Plymouth Office,Stationery National Contracts,Banner Business Services Ltd,Large,946710,2636.47,Stationery National Contracts,Administration
Land Registry,Land Registry,21/05/2013,Weymouth Office,Stationery National Contracts,Banner Business Services Ltd,Large,946710,1973.59,Stationery National Contracts,Administration
Land Registry,Land Registry,21/05/2013,Peterborough Office,Stationery National Contracts,Banner Business Services Ltd,Large,946710,2298.51,Stationery National Contracts,Administration
Land Registry,Land Registry,21/05/2013,Telford Office,Stationery National Contracts,Banner Business Services Ltd,Large,946710,633.91,Stationery National Contracts,Administration
Land Registry,Land Registry,21/05/2013,Coventry Office,Stationery National Contracts,Banner Business Services Ltd,Large,946710,2527.42,Stationery National Contracts,Administration
Land Registry,Land Registry,21/05/2013,Hull Office,Stationery National Contracts,Banner Business Services Ltd,Large,946710,2084.58,Stationery National Contracts,Administration
Land Registry,Land Registry,21/05/2013,Wales Office,Stationery National Contracts,Banner Business Services Ltd,Large,946710,3708.29,Stationery National Contracts,Administration
Land Registry,Land Registry,21/05/2013,Land Charges,Stationery National Contracts,Banner Business Services Ltd,Large,946710,462.84,Stationery National Contracts,Administration
Land Registry,Land Registry,21/05/2013,Central Facilities Management Team,Waste Disposal,Banner Business Services Ltd,Large,946710,15209,Waste Disposal,Administration
Land Registry,Land Registry,21/05/2013,Independent Complaints Reviewer,Stationery National Contracts,Banner Business Services Ltd,Large,946710,37,Stationery National Contracts,Administration
Land Registry,Land Registry,21/05/2013,Corporate Legal Services,Stationery National Contracts,Banner Business Services Ltd,Large,946710,39.28,Stationery National Contracts,Administration
Land Registry,Land Registry,21/05/2013,Property Asset Management Group,Stationery National Contracts,Banner Business Services Ltd,Large,946710,175.07,Stationery National Contracts,Administration
Land Registry,Land Registry,21/05/2013,IS Service Delivery,Stationery National Contracts,Banner Business Services Ltd,Large,946710,16318.43,Stationery National Contracts,Administration
Land Registry,Land Registry,21/05/2013,Governance & Policy,Stationery National Contracts,Banner Business Services Ltd,Large,946710,99.72,Stationery National Contracts,Administration
Land Registry,Land Registry,21/05/2013,Registration Legal Services Group,Stationery National Contracts,Banner Business Services Ltd,Large,946710,13.78,Stationery National Contracts,Administration
Land Registry,Land Registry,21/05/2013,Finance Group,Stationery National Contracts,Banner Business Services Ltd,Large,946710,91.73,Stationery National Contracts,Administration
Land Registry,Land Registry,21/05/2013,Corp Procurement,Stationery National Contracts,Banner Business Services Ltd,Large,946710,35.57,Stationery National Contracts,Administration
Land Registry,Land Registry,21/05/2013,Projects and Programme Centre,Stationery National Contracts,Banner Business Services Ltd,Large,946710,26.92,Stationery National Contracts,Administration
Land Registry,Land Registry,21/05/2013,Marketing Services Team,Stationery National Contracts,Banner Business Services Ltd,Large,946710,24.23,Stationery National Contracts,Administration
Land Registry,Land Registry,21/05/2013,HR,Stationery National Contracts,Banner Business Services Ltd,Large,946710,133.95,Stationery National Contracts,Administration
Land Registry,Land Registry,21/05/2013,Chief Executives Office,Stationery National Contracts,Banner Business Services Ltd,Large,946710,65.02,Stationery National Contracts,Administration
Land Registry,Land Registry,21/05/2013,Internal Solutions Group,Stationery National Contracts,Banner Business Services Ltd,Large,946710,82.43,Stationery National Contracts,Administration
Land Registry,Land Registry,21/05/2013,LR Board & Board Chair,Stationery National Contracts,Banner Business Services Ltd,Large,946710,20.14,Stationery National Contracts,Administration
Land Registry,Land Registry,21/05/2013,External Solutions Group,Stationery National Contracts,Banner Business Services Ltd,Large,946710,68.12,Stationery National Contracts,Administration
Land Registry,Land Registry,21/05/2013,Dir: HR,Stationery National Contracts,Banner Business Services Ltd,Large,946710,1.05,Stationery National Contracts,Administration
Land Registry,Land Registry,21/05/2013,Fylde Office,Security Expenses,Carillion Services Ltd,Large,946732,24153.05,Security Expenses,Administration
Land Registry,Land Registry,21/05/2013,Croydon Sub-Office,Office Cleaning Expenses,Carillion Services Ltd,Large,946732,1230.5,Office Cleaning Expenses,Administration
Land Registry,Land Registry,21/05/2013,Coventry Office,FF&F:Maintenance,Carillion Services Ltd,Large,946732,145.2,FF&F:Maintenance,Administration
Land Registry,Land Registry,21/05/2013,Coventry Office,Pest Control,Carillion Services Ltd,Large,946732,802.5,Pest Control,Administration
Land Registry,Land Registry,21/05/2013,Weymouth Office,Property Maintenance,Carillion Services Ltd,Large,946732,4178.71,Property Maintenance,Administration
Land Registry,Land Registry,21/05/2013,Birkenhead Office,Property Maintenance,Carillion Services Ltd,Large,946732,11529.26,Property Maintenance,Administration
Land Registry,Land Registry,21/05/2013,Croydon Sub-Office,Security Expenses,Carillion Services Ltd,Large,946732,950.16,Security Expenses,Administration
Land Registry,Land Registry,21/05/2013,Coventry Office,Waste Disposal,Carillion Services Ltd,Large,946732,718.86,Waste Disposal,Administration
Land Registry,Land Registry,21/05/2013,Fylde Office,FF&F:Maintenance,Carillion Services Ltd,Large,946732,825.78,FF&F:Maintenance,Administration
Land Registry,Land Registry,21/05/2013,Telford Office,Office Cleaning Expenses,Carillion Services Ltd,Large,946732,2544.5,Office Cleaning Expenses,Administration
Land Registry,Land Registry,21/05/2013,Croydon Office,Property Maintenance,Carillion Services Ltd,Large,946732,2098.56,Property Maintenance,Administration
Land Registry,Land Registry,21/05/2013,Gloucester Office,Office Cleaning Expenses,Carillion Services Ltd,Large,946732,1251.92,Office Cleaning Expenses,Administration
Land Registry,Land Registry,21/05/2013,Gloucester Office,Waste Disposal,Carillion Services Ltd,Large,946732,250.7,Waste Disposal,Administration
Land Registry,Land Registry,21/05/2013,Gloucester Office,Property Maintenance,Carillion Services Ltd,Large,946732,7751.86,Property Maintenance,Administration
Land Registry,Land Registry,21/05/2013,Birkenhead Office,Waste Disposal,Carillion Services Ltd,Large,946732,253.69,Waste Disposal,Administration
Land Registry,Land Registry,21/05/2013,Hull Office,Grounds Maintenance,Carillion Services Ltd,Large,946732,1997.19,Grounds Maintenance,Administration
Land Registry,Land Registry,21/05/2013,Durham Office,Property Maintenance,Carillion Services Ltd,Large,946732,31495.84,Property Maintenance,Administration
Land Registry,Land Registry,21/05/2013,Durham Office,Waste Disposal,Carillion Services Ltd,Large,946732,349.68,Waste Disposal,Administration
Land Registry,Land Registry,21/05/2013,Weymouth Office,FF&F:Maintenance,Carillion Services Ltd,Large,946732,1387.64,FF&F:Maintenance,Administration
Land Registry,Land Registry,21/05/2013,Peterborough Office,Property Maintenance,Carillion Services Ltd,Large,946732,1634.8,Property Maintenance,Administration
Land Registry,Land Registry,21/05/2013,Peterborough Office,Security Expenses,Carillion Services Ltd,Large,946732,767.83,Security Expenses,Administration
Land Registry,Land Registry,21/05/2013,Peterborough Office,FF&F:Maintenance,Carillion Services Ltd,Large,946732,196.27,FF&F:Maintenance,Administration
Land Registry,Land Registry,21/05/2013,Telford Office,Property Maintenance,Carillion Services Ltd,Large,946732,7873.47,Property Maintenance,Administration
Land Registry,Land Registry,21/05/2013,Coventry Office,Property Maintenance,Carillion Services Ltd,Large,946732,7402.06,Property Maintenance,Administration
Land Registry,Land Registry,21/05/2013,Coventry Office,Office Cleaning Expenses,Carillion Services Ltd,Large,946732,2544.5,Office Cleaning Expenses,Administration
Land Registry,Land Registry,21/05/2013,Hull Office,Property Maintenance,Carillion Services Ltd,Large,946732,10706.75,Property Maintenance,Administration
Land Registry,Land Registry,21/05/2013,Hull Office,Pest Control,Carillion Services Ltd,Large,946732,37.45,Pest Control,Administration
Land Registry,Land Registry,21/05/2013,Hull Office,Waste Disposal,Carillion Services Ltd,Large,946732,253.15,Waste Disposal,Administration
Land Registry,Land Registry,21/05/2013,Leicester Office,Property Maintenance,Carillion Services Ltd,Large,946732,6424.26,Property Maintenance,Administration
Land Registry,Land Registry,21/05/2013,Wales Office,Property Maintenance,Carillion Services Ltd,Large,946732,880.47,Property Maintenance,Administration
Land Registry,Land Registry,21/05/2013,Nottingham Office,Property Maintenance,Carillion Services Ltd,Large,946732,3811.93,Property Maintenance,Administration
Land Registry,Land Registry,21/05/2013,Birkenhead Office,Grounds Maintenance,Carillion Services Ltd,Large,946732,1400.63,Grounds Maintenance,Administration
Land Registry,Land Registry,21/05/2013,Birkenhead Office,FF&F:Maintenance,Carillion Services Ltd,Large,946732,272.13,FF&F:Maintenance,Administration
Land Registry,Land Registry,21/05/2013,Fylde Office,Property Maintenance,Carillion Services Ltd,Large,946732,6424.26,Property Maintenance,Administration
Land Registry,Land Registry,21/05/2013,Fylde Office,Office Cleaning Expenses,Carillion Services Ltd,Large,946732,5542.6,Office Cleaning Expenses,Administration
Land Registry,Land Registry,21/05/2013,Fylde Office,Waste Disposal,Carillion Services Ltd,Large,946732,196.09,Waste Disposal,Administration
Land Registry,Land Registry,21/05/2013,Fylde Office,Grounds Maintenance,Carillion Services Ltd,Large,946732,3527.5,Grounds Maintenance,Administration
Land Registry,Land Registry,21/05/2013,Telford Office,Grounds Maintenance,Carillion Services Ltd,Large,946732,1867.5,Grounds Maintenance,Administration
Land Registry,Land Registry,21/05/2013,Weymouth Office,Grounds Maintenance,Carillion Services Ltd,Large,946732,1736.78,Grounds Maintenance,Administration
Land Registry,Land Registry,21/05/2013,Leicester Office,Grounds Maintenance,Carillion Services Ltd,Large,946732,3050.26,Grounds Maintenance,Administration
Land Registry,Land Registry,21/05/2013,Gloucester Office,Grounds Maintenance,Carillion Services Ltd,Large,946732,1151.63,Grounds Maintenance,Administration
Land Registry,Land Registry,21/05/2013,Durham Office,Grounds Maintenance,Carillion Services Ltd,Large,946732,3501.56,Grounds Maintenance,Administration
Land Registry,Land Registry,21/05/2013,Nottingham Office,Grounds Maintenance,Carillion Services Ltd,Large,946732,596.56,Grounds Maintenance,Administration
Land Registry,Land Registry,21/05/2013,Gloucester Computer Centre,Property Maintenance,Carillion Services Ltd,Large,946732,3358.92,Property Maintenance,Administration
Land Registry,Land Registry,21/05/2013,Coventry Office,Grounds Maintenance,Carillion Services Ltd,Large,946732,2054.25,Grounds Maintenance,Administration
Land Registry,Land Registry,21/05/2013,Wales Office,Grounds Maintenance,Carillion Services Ltd,Large,946732,907.81,Grounds Maintenance,Administration
Land Registry,Land Registry,21/05/2013,Gloucester Computer Centre,Grounds Maintenance,Carillion Services Ltd,Large,946732,840.38,Grounds Maintenance,Administration
Land Registry,Land Registry,21/05/2013,RFS15 - Plymouth Drakes Hill Court,Grounds Maintenance,Carillion Services Ltd,Large,946732,290.5,Grounds Maintenance,Administration
Land Registry,Land Registry,21/05/2013,Governance & Policy,FM Managed Services,Carillion Services Ltd,Large,946732,2424.37,Facilities Managed Service,Administration
Land Registry,Land Registry,21/05/2013,Weymouth Office,FM Managed Services,Carillion Services Ltd,Large,946732,464,Facilities Managed Service,Administration
Land Registry,Land Registry,21/05/2013,Croydon Office,FM Managed Services,Carillion Services Ltd,Large,946732,468,Facilities Managed Service,Administration
Land Registry,Land Registry,21/05/2013,Wales Office,FM Managed Services,Carillion Services Ltd,Large,946732,464,Facilities Managed Service,Administration
Land Registry,Land Registry,21/05/2013,Coventry Office,FM Managed Services,Carillion Services Ltd,Large,946732,464,Facilities Managed Service,Administration
Land Registry,Land Registry,21/05/2013,Gloucester Office,FM Managed Services,Carillion Services Ltd,Large,946732,464,Facilities Managed Service,Administration
Land Registry,Land Registry,21/05/2013,Leicester Office,FM Managed Services,Carillion Services Ltd,Large,946732,2764.5,Facilities Managed Service,Administration
Land Registry,Land Registry,21/05/2013,Nottingham Office,FM Managed Services,Carillion Services Ltd,Large,946732,464,Facilities Managed Service,Administration
Land Registry,Land Registry,21/05/2013,Peterborough Office,FM Managed Services,Carillion Services Ltd,Large,946732,8367.93,Facilities Managed Service,Administration
Land Registry,Land Registry,21/05/2013,Telford Office,FM Managed Services,Carillion Services Ltd,Large,946732,2961.42,Facilities Managed Service,Administration
Land Registry,Land Registry,21/05/2013,Birkenhead Office,FM Managed Services,Carillion Services Ltd,Large,946732,2764.5,Facilities Managed Service,Administration
Land Registry,Land Registry,21/05/2013,Durham Office,FM Managed Services,Carillion Services Ltd,Large,946732,4277.09,Facilities Managed Service,Administration
Land Registry,Land Registry,21/05/2013,Fylde Office,FM Managed Services,Carillion Services Ltd,Large,946732,464,Facilities Managed Service,Administration
Land Registry,Land Registry,21/05/2013,Hull Office,FM Managed Services,Carillion Services Ltd,Large,946732,464,Facilities Managed Service,Administration
Land Registry,Land Registry,21/05/2013,RFS4 - Coventry,FM Managed Services,Carillion Services Ltd,Large,946732,1070,Facilities Managed Service,Administration
Land Registry,Land Registry,21/05/2013,Governance & Policy,Property Maintenance,Carillion Services Ltd,Large,946732,42733.12,Property Maintenance,Administration
Land Registry,Land Registry,21/05/2013,Governance & Policy,Grounds Maintenance,Carillion Services Ltd,Large,946732,815.48,Grounds Maintenance,Administration
Land Registry,Land Registry,21/05/2013,Governance & Policy,FF&F:Maintenance,Carillion Services Ltd,Large,946732,2328.78,FF&F:Maintenance,Administration
Land Registry,Land Registry,21/05/2013,Governance & Policy,Waste Disposal,Carillion Services Ltd,Large,946732,228.25,Waste Disposal,Administration
Land Registry,Land Registry,21/05/2013,Dir: HR,Office Cleaning Expenses,Carillion Services Ltd,Large,946732,1118.43,Office Cleaning Expenses,Administration
Land Registry,Land Registry,21/05/2013,Dir: HR,Property Management; Other Fees,Carillion Services Ltd,Large,946732,6424.22,Property Management; Other Fees,Administration
Land Registry,Land Registry,21/05/2013,Dir: Finance,Grounds Maintenance,Carillion Services Ltd,Large,946732,945.88,Grounds Maintenance,Administration
Land Registry,Land Registry,24/05/2013,Business Continuity,Travel & Subsistence General Duty,Redfern Travel Ltd,Large,946915,768.93,Travel & Subsistence General Duty,Administration
Land Registry,Land Registry,24/05/2013,Director of Information Systems,Travel & Subsistence General Duty,Redfern Travel Ltd,Large,946915,1016.01,Travel & Subsistence General Duty,Administration
Land Registry,Land Registry,24/05/2013,Weymouth Office,Travel & Subsistence General Duty,Redfern Travel Ltd,Large,946915,196.11,Travel & Subsistence General Duty,Administration
Land Registry,Land Registry,24/05/2013,Peterborough Office,Travel & Subsistence General Duty,Redfern Travel Ltd,Large,946915,206.25,Travel & Subsistence General Duty,Administration
Land Registry,Land Registry,24/05/2013,Employee & Management Support Manager,Travel & Subsistence General Duty,Redfern Travel Ltd,Large,946915,1100.36,Travel & Subsistence General Duty,Administration
Land Registry,Land Registry,24/05/2013,Croydon Office,Travel & Subsistence General Duty,Redfern Travel Ltd,Large,946915,667.17,Travel & Subsistence General Duty,Administration
Land Registry,Land Registry,24/05/2013,Central Facilities Management Team,Travel & Subsistence General Duty,Redfern Travel Ltd,Large,946915,5698.34,Travel & Subsistence General Duty,Administration
Land Registry,Land Registry,24/05/2013,Wales Office,Travel & Subsistence General Duty,Redfern Travel Ltd,Large,946915,188.26,Travel & Subsistence General Duty,Administration
Land Registry,Land Registry,24/05/2013,Fylde Office,Travel & Subsistence General Duty,Redfern Travel Ltd,Large,946915,223.34,Travel & Subsistence General Duty,Administration
Land Registry,Land Registry,24/05/2013,Plymouth Office,Travel & Subsistence General Duty,Redfern Travel Ltd,Large,946915,114.61,Travel & Subsistence General Duty,Administration
Land Registry,Land Registry,24/05/2013,Director of Operations,Travel & Subsistence General Duty,Redfern Travel Ltd,Large,946915,283.34,Travel & Subsistence General Duty,Administration
Land Registry,Land Registry,24/05/2013,Gloucester Office,Travel & Subsistence General Duty,Redfern Travel Ltd,Large,946915,655.93,Travel & Subsistence General Duty,Administration
Land Registry,Land Registry,24/05/2013,IS Service Delivery,Travel & Subsistence General Duty,Redfern Travel Ltd,Large,946915,6172.04,Travel & Subsistence General Duty,Administration
Land Registry,Land Registry,24/05/2013,Survey & Mapping Services,Travel & Subsistence General Duty,Redfern Travel Ltd,Large,946915,811.48,Travel & Subsistence General Duty,Administration
Land Registry,Land Registry,24/05/2013,Hull Office,Travel & Subsistence General Duty,Redfern Travel Ltd,Large,946915,1934.5,Travel & Subsistence General Duty,Administration
Land Registry,Land Registry,24/05/2013,Leicester Office,Travel & Subsistence General Duty,Redfern Travel Ltd,Large,946915,18.19,Travel & Subsistence General Duty,Administration
Land Registry,Land Registry,24/05/2013,Property Asset Management Group,Travel & Subsistence General Duty,Redfern Travel Ltd,Large,946915,1760.31,Travel & Subsistence General Duty,Administration
Land Registry,Land Registry,24/05/2013,Coventry Office,Travel & Subsistence General Duty,Redfern Travel Ltd,Large,946915,75.38,Travel & Subsistence General Duty,Administration
Land Registry,Land Registry,24/05/2013,Durham Office,Travel & Subsistence General Duty,Redfern Travel Ltd,Large,946915,1187.49,Travel & Subsistence General Duty,Administration
Land Registry,Land Registry,24/05/2013,Nottingham Office,Travel & Subsistence General Duty,Redfern Travel Ltd,Large,946915,514.2,Travel & Subsistence General Duty,Administration
Land Registry,Land Registry,24/05/2013,Birkenhead Office,Travel & Subsistence General Duty,Redfern Travel Ltd,Large,946915,143.66,Travel & Subsistence General Duty,Administration
Land Registry,Land Registry,24/05/2013,LR Sports Council,Travel & Subsistence General Duty,Redfern Travel Ltd,Large,946915,219.06,Travel & Subsistence General Duty,Administration
Land Registry,Land Registry,24/05/2013,Finance Director,Travel & Subsistence General Duty,Redfern Travel Ltd,Large,946915,146.19,Travel & Subsistence General Duty,Administration
Land Registry,Land Registry,24/05/2013,Director of Legal Services,Travel & Subsistence General Duty,Redfern Travel Ltd,Large,946915,2025.7,Travel & Subsistence General Duty,Administration
Land Registry,Land Registry,24/05/2013,Independent Complaints Reviewer,Travel & Subsistence General Duty,Redfern Travel Ltd,Large,946915,410.75,Travel & Subsistence General Duty,Administration
Land Registry,Land Registry,24/05/2013,Professional Library,Travel & Subsistence General Duty,Redfern Travel Ltd,Large,946915,126.85,Travel & Subsistence General Duty,Administration
Land Registry,Land Registry,24/05/2013,National Lawyer Training,Travel & Subsistence General Duty,Redfern Travel Ltd,Large,946915,82.3,Travel & Subsistence General Duty,Administration
Land Registry,Land Registry,24/05/2013,Corporate Legal Services,Travel & Subsistence General Duty,Redfern Travel Ltd,Large,946915,2180.55,Travel & Subsistence General Duty,Administration
Land Registry,Land Registry,24/05/2013,Guarantee & Litigation,Travel & Subsistence General Duty,Redfern Travel Ltd,Large,946915,1032.6,Travel & Subsistence General Duty,Administration
Land Registry,Land Registry,24/05/2013,IS Service Delivery,Travel & Subsistence Overseas Travel,Redfern Travel Ltd,Large,946915,-1123.8,Travel & Subsistence Overseas Travel,Administration
Land Registry,Land Registry,24/05/2013,Registration Legal Services Group,Travel & Subsistence General Duty,Redfern Travel Ltd,Large,946915,513,Travel & Subsistence General Duty,Administration
Land Registry,Land Registry,24/05/2013,Registration Legal Services Group,Travel & Subsistence Overseas Travel,Redfern Travel Ltd,Large,946915,74.49,Travel & Subsistence Overseas Travel,Administration
Land Registry,Land Registry,24/05/2013,Learning and Development,Travel & Subsistence General Duty,Redfern Travel Ltd,Large,946915,1726.7,Travel & Subsistence General Duty,Administration
Land Registry,Land Registry,24/05/2013,Governance & Policy,Travel & Subsistence General Duty,Redfern Travel Ltd,Large,946915,1918.65,Travel & Subsistence General Duty,Administration
Land Registry,Land Registry,24/05/2013,Finance Group,Travel & Subsistence General Duty,Redfern Travel Ltd,Large,946915,195.91,Travel & Subsistence General Duty,Administration
Land Registry,Land Registry,24/05/2013,Business Development,Travel & Subsistence General Duty,Redfern Travel Ltd,Large,946915,5714.68,Travel & Subsistence General Duty,Administration
Land Registry,Land Registry,24/05/2013,Capability,Travel & Subsistence General Duty,Redfern Travel Ltd,Large,946915,465.45,Travel & Subsistence General Duty,Administration
Land Registry,Land Registry,24/05/2013,Internal Solutions Group,Travel & Subsistence General Duty,Redfern Travel Ltd,Large,946915,4860.99,Travel & Subsistence General Duty,Administration
Land Registry,Land Registry,24/05/2013,External Solutions Group,Travel & Subsistence General Duty,Redfern Travel Ltd,Large,946915,3311.29,Travel & Subsistence General Duty,Administration
Land Registry,Land Registry,24/05/2013,Business Planning Assurance and Risk Management,Travel & Subsistence General Duty,Redfern Travel Ltd,Large,946915,236.39,Travel & Subsistence General Duty,Administration
Land Registry,Land Registry,24/05/2013,Internal Audit,Travel & Subsistence General Duty,Redfern Travel Ltd,Large,946915,1429.4,Travel & Subsistence General Duty,Administration
Land Registry,Land Registry,24/05/2013,Customer Services,Travel & Subsistence General Duty,Redfern Travel Ltd,Large,946915,446.79,Travel & Subsistence General Duty,Administration
Land Registry,Land Registry,24/05/2013,International Unit,Travel & Subsistence General Duty,Redfern Travel Ltd,Large,946915,886.13,Travel & Subsistence General Duty,Administration
Land Registry,Land Registry,24/05/2013,International Unit,Travel & Subsistence Overseas Travel,Redfern Travel Ltd,Large,946915,925.8,Travel & Subsistence Overseas Travel,Administration
Land Registry,Land Registry,24/05/2013,Projects and Programme Centre,Travel & Subsistence General Duty,Redfern Travel Ltd,Large,946915,1058.46,Travel & Subsistence General Duty,Administration
Land Registry,Land Registry,24/05/2013,Corp Procurement,Travel & Subsistence General Duty,Redfern Travel Ltd,Large,946915,1423.34,Travel & Subsistence General Duty,Administration
Land Registry,Land Registry,24/05/2013,Commercial Director,Travel & Subsistence General Duty,Redfern Travel Ltd,Large,946915,869.54,Travel & Subsistence General Duty,Administration
Land Registry,Land Registry,24/05/2013,Product Development & Management,Travel & Subsistence General Duty,Redfern Travel Ltd,Large,946915,4196.1,Travel & Subsistence General Duty,Administration
Land Registry,Land Registry,24/05/2013,Marketing Services Team,Travel & Subsistence General Duty,Redfern Travel Ltd,Large,946915,244.2,Travel & Subsistence General Duty,Administration
Land Registry,Land Registry,24/05/2013,HR,Travel & Subsistence General Duty,Redfern Travel Ltd,Large,946915,13560.85,Travel & Subsistence General Duty,Administration
Land Registry,Land Registry,24/05/2013,HR,Travel & Subsistence Overseas Travel,Redfern Travel Ltd,Large,946915,69.73,Travel & Subsistence Overseas Travel,Administration
Land Registry,Land Registry,24/05/2013,Research & Data Mining,Travel & Subsistence General Duty,Redfern Travel Ltd,Large,946915,181.17,Travel & Subsistence General Duty,Administration
Land Registry,Land Registry,24/05/2013,Stakeholder Management,Travel & Subsistence General Duty,Redfern Travel Ltd,Large,946915,23.83,Travel & Subsistence General Duty,Administration
Land Registry,Land Registry,24/05/2013,Commercial & Customer Strategy & Performance,Travel & Subsistence General Duty,Redfern Travel Ltd,Large,946915,1336.96,Travel & Subsistence General Duty,Administration
Land Registry,Land Registry,24/05/2013,Central Operations Group,Travel & Subsistence General Duty,Redfern Travel Ltd,Large,946915,6955.89,Travel & Subsistence General Duty,Administration
Land Registry,Land Registry,24/05/2013,Chief Executives Office,Travel & Subsistence General Duty,Redfern Travel Ltd,Large,946915,3976.75,Travel & Subsistence General Duty,Administration
Land Registry,Land Registry,24/05/2013,Dir: (Add Value) Commercial & Customer,Travel & Subsistence General Duty,Redfern Travel Ltd,Large,946915,1308.21,Travel & Subsistence General Duty,Administration
Land Registry,Land Registry,24/05/2013,Dir: HR,Travel & Subsistence General Duty,Redfern Travel Ltd,Large,946915,6446.35,Travel & Subsistence General Duty,Administration
Land Registry,Land Registry,24/05/2013,Dir: Operations,Travel & Subsistence General Duty,Redfern Travel Ltd,Large,946915,745.57,Travel & Subsistence General Duty,Administration
Land Registry,Land Registry,24/05/2013,Dir: Legal Services,Travel & Subsistence General Duty,Redfern Travel Ltd,Large,946915,2318.92,Travel & Subsistence General Duty,Administration
Land Registry,Land Registry,24/05/2013,Dir: (Statutory) Commercial & Customer,Travel & Subsistence General Duty,Redfern Travel Ltd,Large,946915,11417.45,Travel & Subsistence General Duty,Administration
Land Registry,Land Registry,24/05/2013,Dir: Finance,Travel & Subsistence General Duty,Redfern Travel Ltd,Large,946915,1623.13,Travel & Subsistence General Duty,Administration
Land Registry,Land Registry,24/05/2013,Strategy Team,Travel & Subsistence General Duty,Redfern Travel Ltd,Large,946915,2328.8,Travel & Subsistence General Duty,Administration
Land Registry,Land Registry,24/05/2013,LR Board & Board Chair,Travel & Subsistence General Duty,Redfern Travel Ltd,Large,946915,1750.72,Travel & Subsistence General Duty,Administration
Land Registry,Land Registry,24/05/2013,Capability,Travel & Subsistence Overseas Travel,Redfern Travel Ltd,Large,946915,63.67,Travel & Subsistence Overseas Travel,Administration
Land Registry,Land Registry,28/05/2013,Property Asset Management Group,Rates Payable,Stevenage Borough Council,Large,470767,3956,Rates Payable,Administration
Land Registry,Land Registry,28/05/2013,Property Asset Management Group,Rates Payable,Stevenage Borough Council,Large,470767,26376,Rates Payable,Administration
Land Registry,Land Registry,28/05/2013,Gloucester Office,Rates Payable,Gloucester City Council,Large,470759,23432,Rates Payable,Administration
Land Registry,Land Registry,28/05/2013,Governance & Policy,Rates Payable,City of Plymouth,Large,470752,35325,Rates Payable,Administration
Land Registry,Land Registry,28/05/2013,Durham Office,Rates Payable,Durham County Council,Large,470757,1225,Rates Payable,Administration
Land Registry,Land Registry,28/05/2013,Durham Office,Rates Payable,Durham County Council,Large,470757,28260,Rates Payable,Administration
Land Registry,Land Registry,28/05/2013,Property Asset Management Group,Rates Payable,City of York Council,Large,470753,20724,Rates Payable,Administration
Land Registry,Land Registry,28/05/2013,Coventry Office,Rates Payable,Coventry City Council,Large,470754,43568,Rates Payable,Administration
Land Registry,Land Registry,28/05/2013,Governance & Policy,Rates Payable,City of Plymouth,Large,470752,13306,Rates Payable,Administration
Land Registry,Land Registry,28/05/2013,Peterborough Office,Rates Payable,Peterborough City Council,Large,470763,2661,Rates Payable,Administration
Land Registry,Land Registry,28/05/2013,Peterborough Office,Rates Payable,Peterborough City Council,Large,470763,2496,Rates Payable,Administration
Land Registry,Land Registry,28/05/2013,Peterborough Office,Rates Payable,Peterborough City Council,Large,470763,2732,Rates Payable,Administration
Land Registry,Land Registry,28/05/2013,Leicester Office,Rates Payable,Leicester City Council,Large,470760,17663,Rates Payable,Administration
Land Registry,Land Registry,28/05/2013,Fylde Office,Rates Payable,Fylde Borough Council,Large,470758,17545,Rates Payable,Administration
Land Registry,Land Registry,28/05/2013,Nottingham Office,Rates Payable,Nottingham City Council,Large,470762,6076,Rates Payable,Administration
Land Registry,Land Registry,28/05/2013,Governance & Policy,Rates Payable,South Hams District Council,Large,470766,4616,Rates Payable,Administration
Land Registry,Land Registry,28/05/2013,Nottingham Office,Rates Payable,Nottingham City Council,Large,470762,1943,Rates Payable,Administration
Land Registry,Land Registry,28/05/2013,Nottingham Office,Rates Payable,Nottingham City Council,Large,470762,13188,Rates Payable,Administration
Land Registry,Land Registry,28/05/2013,Nottingham Office,Rates Payable,Nottingham City Council,Large,470762,3344,Rates Payable,Administration
Land Registry,Land Registry,28/05/2013,Wales Office,Rates Payable,City & County of Swansea,Large,470751,2100,Rates Payable,Administration
Land Registry,Land Registry,28/05/2013,Wales Office,Rates Payable,City & County of Swansea,Large,470751,16936,Rates Payable,Administration
Land Registry,Land Registry,28/05/2013,Gloucester Computer Centre,Rates Payable,Tewkesbury Borough Council,Large,470769,11257,Rates Payable,Administration
Land Registry,Land Registry,28/05/2013,Telford Office,Rates Payable,Telford & Wrekin Council,Large,470768,22654,Rates Payable,Administration
Land Registry,Land Registry,28/05/2013,Peterborough Office,Rates Payable,Peterborough City Council,Large,470763,2586,Rates Payable,Administration
Land Registry,Land Registry,29/05/2013,IS Service Delivery,DITI Managed Service,Steria Limited,Large,947788,105962.57,IT Managed Service,Administration
Land Registry,Land Registry,30/05/2013,IS Service Delivery,DITI Managed Service,Steria Limited,Large,948964,758787.1,IT Managed Service,Administration
Land Registry,Land Registry,31/05/2013,Croydon Office,Rates Payable,Croydon Council,Large,470896,27987,Rates Payable,Administration
